bitfinex-derivatives/quotes_ETHF0:USTF0_20260119
["timestamp","ask_amount","ask_price","bid_price","bid_amount"]
[1768783563177,3.57482857,3218.2,3216.4,0.00466345]
[1768783565187,3.57482857,3218.2,3216.4,0.16017345]
[1768783567684,3.57482857,3218.2,3216.8,0.1555]
[1768783568082,0.00466345,3218.2,3217.0,0.15549]
[1768783568279,0.00466345,3218.2,3216.4,2.97195122]
[1768783568483,0.00240047,3219.1,3217.5,0.15546]
[1768783568785,3.57256559,3219.1,3216.4,0.00466345]
[1768783569181,3.57256559,3219.1,3217.0,0.15549]
[1768783569380,3.57256559,3219.1,3216.6,2.95703424]
[1768783569686,3.57256559,3219.1,3217.2,0.15548]
[1768783569876,3.57256559,3219.1,3216.6,2.95703424]
[1768783570081,3.72795559,3219.1,3217.0,0.15549]
[1768783570278,3.57256559,3219.1,3216.4,0.00466345]
[1768783570480,3.72557512,3218.7,3216.4,0.00466345]
[1768783571289,3.57016512,3218.7,3216.4,0.00466345]
[1768783571591,0.00466345,3217.9,3216.4,0.00466345]
[1768783571788,0.00466345,3217.9,3216.7,0.1555]
[1768783571982,0.00466345,3217.9,3216.8,0.1555]
[1768783572290,3.57016512,3218.6,3217.1,0.15548]
[1768783572480,3.57016512,3218.6,3217.2,0.15548]
[1768783574782,3.57016512,3218.6,3216.6,0.15551]
[1768783575485,3.57016512,3218.3,3216.4,0.00466345]
[1768783575988,3.72559512,3218.3,3216.4,0.00466345]
[1768783577283,3.57016512,3218.3,3216.4,0.00466345]
[1768783577588,3.57016512,3218.3,3216.5,0.15551]
[1768783577783,3.57016512,3218.3,3216.9,0.15549]
[1768783578289,3.57016512,3218.3,3216.4,0.00466345]
[1768783578491,3.57016512,3218.3,3217.1,0.15548]
[1768783579590,3.57016512,3219.0,3216.6,2.98096962]
[1768783580491,0.00240047,3219.1,3217.6,0.15546]
[1768783581081,0.00240047,3219.1,3218.0,0.00466345]
[1768783581893,0.00466345,3218.9,3218.0,0.00466345]
[1768783582585,3.41488137,3218.9,3217.0,0.15549]
[1768783582785,3.41488137,3218.9,3216.5,0.15551]
[1768783582987,0.91753015,3218.8,3216.5,0.15551]
[1768783583188,3.41021792,3218.6,3216.5,0.15551]
[1768783583884,3.41021792,3218.6,3217.2,0.00466345]
[1768783585090,3.41021792,3218.4,3217.2,0.00466345]
[1768783585388,3.41021792,3218.4,3216.0,0.00371646]
[1768783586090,3.56564792,3218.2,3216.0,0.00371646]
[1768783586290,3.41021792,3218.0,3216.0,0.00371646]
[1768783586486,3.41021792,3217.8,3216.0,0.00371646]
[1768783586684,3.41021792,3217.8,3216.7,0.00466345]
[1768783587191,3.41021792,3217.8,3216.0,0.00371646]
[1768783587383,0.00466345,3217.6,3216.0,0.15925646]
[1768783587987,0.00466345,3217.6,3216.5,0.15551]
[1768783588185,0.00466345,3217.6,3216.7,0.1555]
[1768783588592,0.00466345,3217.6,3216.0,0.15925646]
[1768783588796,0.00466345,3217.6,3216.8,0.00466345]
[1768783589395,3.41488137,3217.6,3216.0,0.15925646]
[1768783590087,3.41488137,3217.6,3216.1,0.15553]
[1768783591595,3.41488137,3217.6,3216.0,0.00371646]
[1768783592888,3.41021792,3217.4,3214.7,0.40804345]
[1768783593089,3.41021792,3217.2,3214.8,2.95359]
[1768783593288,3.41021792,3217.2,3214.8,2.798]
[1768783593491,3.41021792,3217.2,3215.3,0.15557]
[1768783593687,3.41021792,3217.2,3215.4,0.15556]
[1768783593889,3.41021792,3217.2,3215.5,0.15556]
[1768783594095,3.41021792,3217.2,3215.9,0.003109]
[1768783596099,3.56569792,3217.2,3215.5,0.00297721]
[1768783596288,0.15548,3217.1,3215.5,0.00297721]
[1768783596494,3.56570792,3217.0,3215.5,0.00297721]
[1768783597898,3.41021792,3217.0,3215.5,0.00297721]
[1768783598096,3.41021792,3217.0,3215.5,0.15853721]
[1768783598509,3.59489121,3217.6,3215.7,0.15555]
[1768783599395,3.59489121,3217.6,3215.5,0.00297721]
[1768783599702,3.59489121,3217.6,3215.5,3.03876073]
[1768783600104,0.00466345,3217.6,3215.5,3.03876073]
[1768783600601,0.00466345,3217.6,3216.1,0.15553]
[1768783600804,0.00466345,3217.6,3215.5,3.03876073]
[1768783600993,0.00466345,3217.6,3216.5,0.15551]
[1768783601394,0.00466345,3217.6,3215.5,3.03876073]
[1768783601395,0.00466345,3217.6,3216.6,0.15551]
[1768783602001,0.00466345,3217.6,3216.0,3.03124543]
[1768783602204,0.00466345,3217.6,3216.8,0.1555]
[1768783602619,0.00240047,3219.1,3216.0,3.03124543]
[1768783602620,3.59022776,3218.8,3216.9,0.15549]
[1768783602907,3.59022776,3218.8,3217.0,0.15549]
[1768783603499,3.59022776,3218.8,3217.1,0.15548]
[1768783603701,0.00466345,3218.2,3217.2,0.15548]
[1768783603898,0.00466345,3218.2,3217.0,3.00575991]
[1768783604107,0.00240047,3219.1,3217.0,3.00575991]
[1768783604313,0.00240047,3219.1,3217.6,0.15546]
[1768783604610,0.00240047,3219.1,3217.7,0.15545]
[1768783605099,0.00240047,3219.1,3217.8,0.15545]
[1768783605303,0.00240047,3219.1,3217.8,0.15923884]
[1768783605901,3.59262823,3219.1,3217.8,0.00378884]
[1768783606706,3.59262823,3219.1,3217.1,0.15548]
[1768783607610,0.00466345,3218.4,3217.8,0.00466345]
[1768783608813,0.00240047,3219.1,3217.8,0.00466345]
[1768783609902,0.00240047,3219.1,3217.8,0.16011345]
[1768783610211,0.00240047,3219.1,3218.0,0.15544]
[1768783610407,0.00240047,3219.1,3218.2,0.15543]
[1768783610710,3.59022776,3219.9,3218.2,0.15543]
[1768783611608,3.59271574,3219.9,3218.2,0.15543]
[1768783611810,0.00466345,3219.4,3218.2,0.15543]
[1768783612608,3.31013078,3219.4,3217.8,0.00466345]
[1768783613014,3.31013078,3219.4,3217.8,0.16011345]
[1768783613310,3.31013078,3219.4,3217.9,0.15545]
[1768783613507,0.15533,3220.3,3217.9,3.13106567]
[1768783613707,3.30546733,3220.2,3217.8,0.00466345]
[1768783614204,3.30546733,3220.2,3217.8,0.16011345]
[1768783614410,3.30546733,3220.2,3217.8,0.00466345]
[1768783614709,3.3086682,3220.2,3218.3,0.15543]
[1768783614906,3.3086682,3220.2,3217.8,2.98825746]
[1768783614907,3.3086682,3220.2,3218.4,0.15542]
[1768783615111,3.3086682,3220.2,3218.5,0.15541]
[1768783615305,3.3086682,3220.2,3218.6,0.15541]
[1768783615908,0.003109,3219.7,3217.9,2.98359401]
[1768783616308,0.003109,3219.7,3218.5,0.15542]
[1768783616704,0.003109,3219.7,3217.9,2.98359401]
[1768783616922,9e-06,3219.7,3219.1,0.15538]
[1768783617307,9e-06,3220.2,3219.4,0.15537]
[1768783617509,3.30546733,3221.4,3219.4,0.15537]
[1768783617712,3.30546733,3221.2,3219.4,0.15537]
[1768783618617,3.30905464,3221.2,3220.0,0.00466345]
[1768783619107,0.00240947,3220.9,3220.0,0.00466345]
[1768783619507,0.00240947,3220.8,3220.0,0.00466345]
[1768783619708,0.00240947,3220.9,3220.0,0.00466345]
[1768783619921,0.00358731,3221.2,3220.0,0.00466345]
[1768783620507,0.00358731,3221.2,3220.2,0.15533]
[1768783621009,0.00358731,3221.2,3220.0,0.00466345]
[1768783621212,0.00358731,3221.2,3220.0,0.16000345]
[1768783622505,3.30546733,3222.4,3220.3,0.15533]
[1768783623611,3.30851005,3222.4,3220.3,0.15533]
[1768783624510,3.30851005,3222.4,3220.1,2.89654684]
[1768783625610,3.30851005,3222.4,3220.7,0.15531]
[1768783626009,3.30851005,3222.4,3220.1,2.89654684]
[1768783626215,3.30851005,3222.4,3220.8,0.1553]
[1768783626415,0.00304272,3222.4,3220.1,2.89654684]
[1768783626709,0.00304272,3222.4,3221.2,0.15528]
[1768783627327,0.00304272,3222.4,3220.0,2.80066345]
[1768783627328,3.30546733,3222.3,3220.6,0.15532]
[1768783628316,3.3078768,3222.3,3220.6,0.15532]
[1768783628508,0.00304272,3222.4,3220.6,0.15532]
[1768783628509,3.30546733,3221.9,3220.6,0.15532]
[1768783628707,0.00304272,3222.4,3220.0,0.00466345]
[1768783628708,3.30546733,3221.6,3220.0,0.00466345]
[1768783629426,3.30546733,3221.6,3220.2,0.15533]
[1768783630022,3.30546733,3221.6,3220.3,0.15533]
[1768783630217,0.15827272,3222.4,3220.0,0.00466345]
[1768783630218,3.30546733,3222.3,3220.0,0.00466345]
[1768783630419,3.30546733,3222.3,3220.6,0.15531]
[1768783630810,0.00304272,3222.4,3220.0,0.00466345]
[1768783630811,3.30546733,3221.7,3220.0,0.16000345]
[1768783632013,3.30546733,3221.5,3220.0,0.16000345]
[1768783632222,3.30546733,3221.3,3220.0,0.00466345]
[1768783632526,3.30546733,3221.0,3220.0,0.00466345]
[1768783632928,3.30546733,3220.8,3220.0,0.00466345]
[1768783633221,3.30546733,3220.8,3218.5,2.93688292]
[1768783633222,3.30546733,3220.8,3219.4,0.15845237]
[1768783633424,0.00304272,3222.4,3220.1,3.60922009]
[1768783633622,0.00304272,3222.4,3220.8,0.1553]
[1768783634028,0.00240947,3222.3,3220.8,0.1553]
[1768783634229,0.00240947,3222.3,3221.3,0.00465607]
[1768783634529,0.00304272,3222.4,3220.8,0.1553]
[1768783634530,0.00704831,3221.9,3220.8,0.1553]
[1768783634725,0.00463884,3221.9,3220.8,0.1553]
[1768783635527,0.00463884,3221.9,3220.3,3.60922009]
[1768783635829,3.31010617,3221.9,3220.2,0.15533]
[1768783636030,0.00240947,3221.7,3220.2,0.15533]
[1768783636229,0.00463884,3221.9,3219.8,3.60922009]
[1768783636420,0.00463884,3221.9,3220.5,0.15532]
[1768783636816,0.00463884,3221.9,3220.0,3.60922009]
[1768783637032,0.00463884,3221.9,3220.9,0.00465607]
[1768783637432,0.00704831,3221.9,3220.9,0.00465607]
[1768783638031,0.00240947,3221.2,3220.9,0.00465607]
[1768783638219,0.00240947,3221.5,3220.0,3.60922009]
[1768783638426,3.31010617,3221.9,3220.0,3.60922009]
[1768783638732,3.31251564,3221.9,3220.0,3.60922009]
[1768783639124,0.00240947,3221.8,3220.1,0.15534]
[1768783639319,0.00463884,3221.9,3220.6,0.15531]
[1768783640923,3.31010617,3221.9,3220.9,0.00465607]
[1768783641123,0.00240947,3221.6,3220.0,0.15534]
[1768783641324,3.31010617,3221.9,3220.0,0.15534]
[1768783641939,3.31010617,3221.9,3220.1,0.15534]
[1768783642739,3.31010617,3221.9,3220.7,0.00465607]
[1768783643124,0.00240947,3221.6,3220.7,0.00465607]
[1768783643736,0.00240947,3221.5,3220.7,0.00465607]
[1768783643943,0.00240947,3221.6,3220.7,0.00465607]
[1768783644439,0.00240947,3221.4,3220.7,0.00465607]
[1768783644738,0.00240947,3221.6,3220.7,0.00465607]
[1768783645123,0.00240947,3221.4,3220.7,0.00465607]
[1768783645327,3.31010617,3221.9,3220.7,0.00465607]
[1768783645726,0.00240947,3221.5,3220.7,0.00465607]
[1768783645946,3.45353457,3221.6,3219.6,0.15536]
[1768783646128,3.45353457,3221.4,3219.6,0.15536]
[1768783646333,3.45594404,3221.4,3219.6,0.15536]
[1768783646628,0.00240947,3221.3,3219.7,0.15536]
[1768783646834,0.00240947,3221.2,3219.7,0.15536]
[1768783647332,0.00240947,3221.1,3219.7,0.15536]
[1768783647644,0.00240947,3221.2,3219.8,0.15535]
[1768783647845,3.45353457,3221.4,3220.1,0.00312129]
[1768783648149,0.00240947,3221.3,3220.1,0.00312129]
[1768783648347,0.00240947,3221.0,3220.1,0.00312129]
[1768783648849,0.00240947,3220.8,3220.1,0.00312129]
[1768783649057,0.00240947,3221.0,3219.9,0.15535]
[1768783649235,3.45353457,3221.4,3219.5,0.15537]
[1768783649236,0.00240947,3221.1,3219.5,0.15537]
[1768783649550,0.00240947,3221.3,3219.5,0.15537]
[1768783649847,0.90543731,3221.2,3219.5,0.15537]
[1768783650152,0.00240947,3221.2,3219.5,0.15537]
[1768783650456,0.00240947,3221.1,3219.5,0.15537]
[1768783650749,0.00240947,3221.2,3219.5,0.15537]
[1768783651146,0.00240947,3221.1,3219.6,0.15536]
[1768783651450,0.00240947,3221.3,3219.6,0.15536]
[1768783651640,0.00240947,3221.1,3219.6,0.15536]
[1768783651842,0.00240947,3221.2,3219.7,0.15536]
[1768783652245,0.00240947,3221.0,3219.7,0.15536]
[1768783652552,0.00240947,3221.1,3219.7,0.15536]
[1768783652941,0.00240947,3221.0,3219.7,0.15536]
[1768783653148,0.00240947,3221.1,3219.7,0.15536]
[1768783653655,3.45353457,3221.4,3219.7,0.15536]
[1768783653844,0.00240947,3221.1,3219.7,0.15536]
[1768783654243,0.00240947,3220.9,3219.7,0.15536]
[1768783654452,0.00240947,3221.2,3219.7,0.15536]
[1768783654652,0.00240947,3221.2,3219.8,0.15535]
[1768783654847,0.00240947,3221.1,3219.8,0.15535]
[1768783655148,0.00240947,3220.7,3219.4,0.00308237]
[1768783655356,0.00240947,3221.1,3219.4,0.15845237]
[1768783655546,0.15529,3221.2,3219.4,0.15845237]
[1768783655547,0.00240947,3220.8,3219.4,0.15845237]
[1768783655949,0.00240947,3220.6,3219.4,0.15845237]
[1768783656250,0.00240947,3220.3,3219.4,0.15845237]
[1768783656557,3.45353457,3220.9,3219.4,0.15845237]
[1768783656558,0.00240947,3220.5,3219.4,0.15845237]
[1768783656854,0.00465607,3220.2,3219.4,0.15845237]
[1768783657461,0.00240947,3220.0,3219.4,0.15845237]
[1768783657648,0.00556288,3220.0,3219.4,0.15845237]
[1768783657958,0.00240947,3219.9,3219.4,0.15845237]
[1768783658343,3.51314293,3221.4,3219.4,3.50344864]
[1768783658541,3.51314293,3221.4,3219.8,0.15535]
[1768783658749,3.51314293,3221.4,3219.4,3.50344864]
[1768783658948,0.91067419,3221.3,3219.4,3.50344864]
[1768783659140,3.51314293,3221.1,3219.4,0.00308237]
[1768783659347,3.51703977,3221.1,3219.4,0.00308237]
[1768783659664,0.00465607,3220.6,3219.4,0.00308237]
[1768783659952,3.517799,3220.6,3219.4,0.00308237]
[1768783660158,3.51314293,3220.4,3218.6,0.15541]
[1768783660653,3.66849293,3219.8,3217.9,0.15544]
[1768783661153,3.66849293,3219.8,3217.9,0.15795891]
[1768783661356,5.52007251,3219.8,3217.9,0.00251891]
[1768783661541,3.51314293,3219.4,3217.9,0.00251891]
[1768783661746,3.51314293,3219.2,3217.9,0.00251891]
[1768783661947,3.51314293,3219.0,3216.6,3.50036627]
[1768783662258,3.51314293,3218.8,3216.6,3.50036627]
[1768783662448,3.51314293,3218.7,3216.6,3.50036627]
[1768783662948,3.51314293,3218.4,3216.6,0.0033539]
[1768783664154,5.52014251,3218.4,3216.6,0.0033539]
[1768783664353,3.51314293,3218.2,3216.6,0.0033539]
[1768783665753,3.51314293,3218.4,3216.6,0.0033539]
[1768783666846,3.51314293,3218.2,3216.6,0.0033539]
[1768783667156,1.801,3218.1,3216.6,0.0033539]
[1768783667351,3.51314293,3218.1,3216.6,0.0033539]
[1768783667546,3.51314293,3218.1,3216.6,0.1588539]
[1768783667854,1.801,3218.5,3216.6,0.1588539]
[1768783669854,5.31414293,3218.5,3216.6,0.1588539]
[1768783670055,3.51314293,3218.4,3216.6,0.1588539]
[1768783670953,3.51314293,3218.4,3216.8,0.1555]
[1768783672060,3.51314293,3218.4,3216.6,3.50372017]
[1768783672360,1.801,3218.6,3217.1,0.15548]
[1768783673354,0.00337667,3218.7,3217.2,0.15548]
[1768783673560,0.00337667,3218.7,3217.3,0.15547]
[1768783674454,0.00337667,3218.7,3217.4,0.15547]
[1768783675170,0.00337667,3218.7,3217.8,0.15545]
[1768783675465,0.00337667,3218.7,3217.2,3.45100516]
[1768783675654,0.00337667,3218.7,3217.1,0.15548]
[1768783675851,0.00337667,3218.7,3217.4,0.15547]
[1768783677461,0.00337667,3218.7,3217.8,0.15545]
[1768783678947,0.00337667,3218.7,3217.9,0.15544]
[1768783679649,0.00337667,3218.7,3217.6,1.85157958]
[1768783679855,0.00337667,3218.7,3218.0,0.15544]
[1768783680063,0.00465607,3218.9,3218.4,0.15542]
[1768783680365,1.801,3219.9,3218.4,0.15542]
[1768783680662,3.26386396,3219.9,3217.8,0.15545]
[1768783680868,3.26386396,3219.5,3217.1,3.45100516]
[1768783681070,3.26386396,3219.4,3217.4,0.15547]
[1768783681249,0.00240757,3219.5,3217.5,3.45100516]
[1768783681449,0.00240757,3219.5,3218.1,0.15543]
[1768783681651,3.26627153,3219.5,3216.8,3.45100516]
[1768783681855,3.26627153,3219.5,3217.4,0.15547]
[1768783682054,3.42164153,3219.5,3216.8,3.45100516]
[1768783682265,1.801,3219.4,3217.6,0.15546]
[1768783682460,5.06486396,3219.4,3217.6,0.15546]
[1768783682657,0.00465607,3218.8,3217.2,3.45100516]
[1768783682959,0.00465607,3218.8,3217.9,0.15544]
[1768783683356,0.00465607,3218.8,3217.7,0.00465607]
[1768783683860,0.00465607,3218.8,3217.7,0.16010607]
[1768783684366,0.00465607,3218.8,3217.8,0.15545]
[1768783686364,0.00465607,3218.8,3218.2,0.15543]
[1768783686568,0.00240757,3219.5,3218.2,0.15543]
[1768783687358,0.00240757,3219.5,3218.3,0.15543]
[1768783687760,0.00465607,3219.2,3218.3,0.15543]
[1768783691757,0.00465607,3219.2,3217.7,0.00465607]
[1768783691964,3.26852003,3219.2,3217.7,0.00465607]
[1768783693072,0.00465607,3219.2,3217.8,3.45100516]
[1768783693660,0.00240757,3219.5,3218.2,3.45100516]
[1768783693970,3.26386396,3220.4,3218.7,0.15541]
[1768783694172,4.18580162,3220.3,3218.1,3.45100516]
[1768783694372,4.18580162,3220.2,3218.1,3.45100516]
[1768783694673,3.26386396,3220.2,3218.1,3.45100516]
[1768783694876,3.26647897,3220.2,3218.1,3.45100516]
[1768783695169,3.26647897,3220.2,3218.4,0.15542]
[1768783695570,0.00465607,3219.6,3218.4,0.15542]
[1768783696176,0.00465607,3219.6,3217.7,0.16010607]
[1768783696471,3.26386396,3219.4,3217.7,0.00465607]
[1768783696677,3.26386396,3219.2,3217.7,0.00465607]
[1768783696872,3.26386396,3219.0,3217.7,0.00465607]
[1768783697172,3.26852003,3219.6,3217.7,3.45566123]
[1768783697368,4.18233091,3219.5,3217.7,3.45566123]
[1768783697569,4.33692804,3219.4,3217.7,0.00465607]
[1768783697771,3.41925396,3219.2,3217.7,0.00465607]
[1768783697970,4.18154804,3219.1,3217.7,0.00465607]
[1768783698170,0.91768408,3219.0,3217.7,0.00465607]
[1768783698371,3.26386396,3219.1,3217.7,0.00465607]
[1768783698871,0.8186102,3219.5,3217.7,0.00465607]
[1768783699071,0.91775197,3219.5,3217.7,3.61111123]
[1768783699276,0.91775197,3219.4,3217.7,3.61111123]
[1768783699464,3.26386396,3219.5,3217.7,0.16010607]
[1768783699670,0.91713982,3219.4,3217.7,0.16010607]
[1768783699871,3.26386396,3219.5,3217.7,0.16010607]
[1768783700077,0.91731595,3219.4,3217.7,0.16010607]
[1768783700276,0.91769164,3219.3,3217.7,0.16010607]
[1768783700579,3.26386396,3219.5,3217.7,0.16010607]
[1768783700779,3.26386396,3219.3,3217.7,0.16010607]
[1768783701771,0.82326627,3219.6,3217.7,3.45566123]
[1768783702079,0.00465607,3219.6,3218.2,3.60643516]
[1768783702973,0.00465607,3219.6,3218.3,0.15543]
[1768783703176,0.00465607,3219.6,3217.7,0.00465607]
[1768783703177,0.00465607,3219.6,3218.4,3.70600672]
[1768783703578,0.00465607,3219.6,3217.8,1.942]
[1768783703579,3.32510042,3219.6,3217.8,3.70603672]
[1768783703978,0.00465607,3219.6,3217.8,3.55058672]
[1768783704276,0.00465607,3219.6,3218.8,0.1554]
[1768783704477,0.00261501,3220.2,3218.8,0.1554]
[1768783705376,0.00261501,3220.2,3218.6,3.55058672]
[1768783705377,0.00261501,3220.2,3218.6,3.70599672]
[1768783705681,0.00261501,3220.2,3218.7,0.15541]
[1768783705682,0.00465607,3219.8,3218.7,0.15541]
[1768783706176,0.00465607,3219.8,3219.0,0.15539]
[1768783706380,0.00261501,3220.2,3219.0,0.15857503]
[1768783707980,3.32305936,3220.2,3219.0,0.00318503]
[1768783708177,3.32044435,3220.0,3217.8,3.85732923]
[1768783708483,3.32044435,3219.8,3217.7,0.00465607]
[1768783708872,3.32044435,3219.6,3217.7,0.00465607]
[1768783709073,3.32044435,3219.6,3217.7,0.00783662]
[1768783709274,3.32044435,3219.4,3217.7,0.00783662]
[1768783710183,0.00310406,3218.9,3217.7,0.00783662]
[1768783710983,0.00310406,3218.9,3217.8,0.15545]
[1768783712980,0.00310406,3218.9,3217.8,3.70603672]
[1768783713188,0.00310406,3218.9,3217.9,0.15545]
[1768783713987,0.00310406,3218.9,3217.9,3.70603672]
[1768783715678,0.00310406,3218.9,3217.9,0.15545]
[1768783717884,0.00310406,3218.9,3217.7,3.41120452]
[1768783718089,3.42270439,3220.1,3217.7,3.41120452]
[1768783718281,0.91625197,3220.0,3217.7,3.41120452]
[1768783718590,3.42270439,3220.1,3218.4,0.15542]
[1768783718783,3.42270439,3219.9,3218.4,0.15542]
[1768783719894,0.82122521,3220.2,3218.4,0.15542]
[1768783720090,3.42270439,3220.1,3217.7,0.00783662]
[1768783720388,3.42270439,3219.9,3217.9,0.15544]
[1768783721394,3.42270439,3219.7,3217.9,0.15544]
[1768783723296,3.42270439,3219.7,3218.0,0.15544]
[1768783725494,0.91566587,3219.6,3218.0,0.15544]
[1768783725690,3.42270439,3219.5,3218.0,0.15544]
[1768783726490,3.42270439,3219.5,3217.7,0.00783662]
[1768783726686,1.06408209,3220.0,3217.7,0.00783662]
[1768783726687,3.42270439,3219.3,3217.7,0.00783662]
[1768783727291,3.42270439,3218.8,3216.9,3.85732923]
[1768783727695,3.42270439,3218.8,3216.7,0.1555]
[1768783728001,3.42270439,3218.6,3216.7,0.1555]
[1768783728301,3.42270439,3218.6,3217.0,0.15549]
[1768783728504,3.42270439,3218.6,3217.3,0.00465607]
[1768783730507,3.57812439,3218.4,3216.7,0.0030866]
[1768783731488,3.42270439,3218.2,3216.7,0.0030866]
[1768783731693,3.42270439,3218.0,3216.7,0.0030866]
[1768783732697,3.57814439,3218.0,3216.7,0.0030866]
[1768783733098,3.38849887,3217.8,3216.6,0.1]
[1768783733302,3.38849887,3217.6,3216.6,0.1]
[1768783733992,3.39220012,3217.6,3216.1,0.80672542]
[1768783734192,3.39220012,3217.6,3215.1,3.43379919]
[1768783734193,3.54396887,3217.4,3215.1,3.43379919]
[1768783734602,3.38849887,3217.2,3215.1,3.43379919]
[1768783734995,3.38849887,3217.2,3215.1,3.58937919]
[1768783735194,3.38849887,3217.2,3215.1,3.43631163]
[1768783736400,3.38849887,3217.2,3215.8,0.00466374]
[1768783737008,3.38849887,3216.9,3215.1,0.00251244]
[1768783737194,3.38849887,3217.4,3215.1,3.43631163]
[1768783737394,3.38849887,3217.4,3215.3,0.15557]
[1768783738415,3.54396887,3217.4,3215.1,3.43631163]
[1768783738710,3.38849887,3217.0,3215.1,0.00251244]
[1768783740209,3.38849887,3216.4,3215.1,0.00251244]
[1768783741004,0.00466374,3216.1,3215.1,0.00251244]
[1768783741200,0.00466374,3216.1,3215.1,3.43631163]
[1768783741401,3.38849887,3216.9,3215.3,0.15557]
[1768783742420,3.38849887,3217.4,3215.6,0.15556]
[1768783742712,0.00466374,3216.4,3215.6,0.15556]
[1768783742907,3.38849887,3217.4,3216.2,0.00466374]
[1768783744310,0.00466374,3217.1,3216.2,0.00466374]
[1768783744913,3.39316261,3217.1,3216.2,0.00466374]
[1768783745212,3.39316261,3217.1,3215.2,0.15558]
[1768783745510,3.39316261,3217.1,3215.1,0.00251244]
[1768783746307,3.39316261,3217.1,3215.1,3.59189163]
[1768783747215,3.54865261,3217.1,3215.1,0.15809244]
[1768783747815,3.54865261,3217.1,3215.1,0.00251244]
[1768783748717,3.38849887,3216.9,3215.1,0.00251244]
[1768783749309,3.38849887,3216.9,3215.3,0.15557]
[1768783749614,0.00466374,3217.1,3215.4,0.15557]
[1768783749807,0.00466374,3217.1,3215.5,0.15556]
[1768783750008,0.00466374,3217.1,3215.7,0.15555]
[1768783750513,0.00466374,3217.1,3216.1,0.00466374]
[1768783751117,0.00370125,3217.6,3216.4,3.58931919]
[1768783751313,3.38849887,3219.0,3216.6,3.58929919]
[1768783751813,3.38849887,3219.0,3216.7,3.58929919]
[1768783752408,3.39116461,3219.0,3216.7,3.58929919]
[1768783752609,0.00466374,3218.2,3216.7,3.58929919]
[1768783753514,0.00466374,3218.2,3216.7,3.43379919]
[1768783753911,0.00266574,3219.0,3217.3,3.43379919]
[1768783754215,0.00266574,3219.0,3217.4,3.58926919]
[1768783754416,0.00266574,3219.0,3217.4,3.59188255]
[1768783754817,0.00266574,3219.0,3217.7,3.58924919]
[1768783755020,0.00266574,3219.0,3218.0,0.15544]
[1768783755214,0.00266574,3219.0,3217.9,0.00466374]
[1768783758415,0.00465863,3218.8,3217.9,0.00466374]
[1768783759216,0.00266574,3219.0,3217.9,0.16011374]
[1768783759421,0.00266574,3219.0,3218.0,0.15544]
[1768783759614,0.00266574,3219.0,3218.2,0.15543]
[1768783761615,0.00266574,3219.0,3217.9,3.43846293]
[1768783761810,3.38849887,3220.4,3218.5,3.43379919]
[1768783762713,3.39230219,3220.4,3218.5,3.43379919]
[1768783764124,3.39230219,3220.4,3218.6,0.15541]
[1768783764325,0.00380332,3220.4,3218.5,3.43379919]
[1768783764521,0.00380332,3220.4,3218.9,0.1554]
[1768783764823,0.00380332,3220.4,3218.9,3.48479302]
[1768783765019,0.00380332,3220.4,3218.4,3.32939302]
[1768783765219,3.60202246,3220.4,3218.4,3.32939302]
[1768783765421,3.60202246,3220.4,3218.1,3.26443]
[1768783765422,3.60202246,3220.4,3218.1,0.15543]
[1768783766327,3.75735246,3220.4,3218.1,0.15543]
[1768783766522,3.59821914,3220.2,3218.1,3.48482302]
[1768783766727,3.59821914,3220.2,3218.3,3.48481302]
[1768783767118,3.59821914,3220.2,3218.4,0.15542]
[1768783767320,0.00380332,3220.4,3218.7,3.32939302]
[1768783767623,0.00380332,3220.4,3218.4,1.85372765]
[1768783767624,0.00380332,3220.4,3218.8,3.32939302]
[1768783767826,0.00380332,3220.4,3219.1,0.15539]
[1768783769529,0.00380332,3220.4,3219.2,0.15538]
[1768783769832,3.60202246,3220.4,3218.4,0.15542]
[1768783770732,3.60202246,3220.4,3218.5,0.15542]
[1768783770930,3.60202246,3220.4,3218.6,0.15541]
[1768783772030,3.60202246,3220.4,3218.7,0.15541]
[1768783773524,3.60202246,3220.4,3218.2,3.32939302]
[1768783773831,3.60202246,3220.4,3218.2,3.48482302]
[1768783774329,3.60202246,3220.4,3218.2,0.15543]
[1768783774330,3.59821914,3220.2,3218.2,0.15543]
[1768783775128,3.59821914,3220.2,3218.0,3.32939302]
[1768783775323,0.00380332,3220.4,3218.6,3.48480302]
[1768783775524,0.00380332,3220.4,3218.1,3.32939302]
[1768783775525,3.60202246,3220.4,3218.1,3.32939302]
[1768783775721,3.59821914,3220.2,3217.9,0.16010374]
[1768783775923,1.85372765,3220.3,3217.9,0.16010374]
[1768783775924,3.59821914,3220.0,3217.9,3.33405676]
[1768783776122,3.59821914,3220.0,3218.1,3.32939302]
[1768783776326,3.59821914,3220.0,3218.3,0.15543]
[1768783776533,0.00380332,3220.4,3218.5,0.15542]
[1768783776737,0.00380332,3220.4,3218.5,3.48481302]
[1768783776923,3.60202246,3220.4,3218.5,3.48481302]
[1768783777426,3.60202246,3220.4,3218.5,0.15542]
[1768783781233,4.30383834,3220.3,3218.5,0.15542]
[1768783781436,3.38860532,3220.3,3218.5,0.15542]
[1768783782436,3.38860532,3220.1,3218.5,0.15542]
[1768783783837,0.00380332,3220.4,3218.5,3.71574568]
[1768783784037,0.91560982,3220.3,3218.6,0.15541]
[1768783784229,3.39240864,3220.4,3218.6,0.15541]
[1768783784430,0.91603362,3220.3,3218.6,0.15541]
[1768783784633,0.91686805,3220.2,3218.6,0.15541]
[1768783784940,3.38860532,3220.1,3218.6,0.15541]
[1768783785631,3.38860532,3220.1,3218.1,3.71575568]
[1768783785832,3.38860532,3220.1,3218.2,0.15543]
[1768783786030,3.38860532,3220.1,3217.9,3.56498942]
[1768783786031,3.38860532,3220.1,3218.3,3.56032568]
[1768783786240,3.38860532,3220.1,3218.6,0.15541]
[1768783788844,0.00380332,3220.4,3218.6,0.15541]
[1768783789038,0.91713949,3220.3,3218.7,0.15541]
[1768783789234,0.00380332,3220.4,3218.7,0.15541]
[1768783789434,0.00380332,3220.4,3218.7,3.71573568]
[1768783789838,0.00380332,3220.4,3218.8,3.56032568]
[1768783790037,0.00380332,3220.4,3219.2,0.15538]
[1768783790635,0.00380332,3220.4,3218.6,0.15541]
[1768783791047,3.39240864,3220.4,3218.7,0.15541]
[1768783791344,3.39240864,3220.4,3218.8,0.1554]
[1768783792343,0.00380332,3220.4,3219.1,3.29204202]
[1768783792537,0.00380332,3220.4,3219.5,0.15537]
[1768783792934,0.00380332,3220.4,3219.6,0.00466374]
[1768783795042,0.00380332,3220.4,3219.6,0.16002374]
[1768783795245,3.52558009,3221.1,3219.8,0.15535]
[1768783795444,4.34147917,3221.6,3220.0,0.15534]
[1768783795748,3.52558009,3221.6,3220.1,0.15534]
[1768783795949,0.81589908,3222.0,3220.2,0.15533]
[1768783796151,0.91645072,3221.9,3220.2,0.15533]